fUST/lending_fUST_20240421
["ID","MTS","AMOUNT","RATE_DAILY","PERIOD"]
[323112103,1713672632210,-300.0,0.0002191,2]
[323112104,1713672632220,-62521.15435273,0.00021911,2]
[323112109,1713672638055,-176.34019978,0.00021812,2]
[323112110,1713672638066,-161.96145842,0.00021907,2]
[323112111,1713672638075,-1412.14495227,0.00021911,2]
[323112112,1713672638084,-159.68999245,0.00021912,2]
[323112113,1713672638093,-319.28962989,0.00021912,2]
[323112114,1713672638103,-675.19997893,0.00021912,2]
[323112115,1713672638113,-218.60544592,0.00021912,2]
[323112116,1713672638122,-155.08216337,0.00021912,2]
[323112117,1713672638132,-155.47377049,0.00021912,2]
[323112118,1713672638140,-234.1221445,0.00021912,2]
[323112119,1713672638149,-167.47944015,0.00021912,2]
[323112120,1713672638159,-281.94673516,0.00021912,2]
[323112121,1713672638170,-155.58264086,0.00021912,2]
[323112122,1713672638178,-155.45888017,0.00021912,2]
[323112123,1713672638188,-525.5383317,0.00021912,2]
[323112124,1713672638198,-1093.39045188,0.00021912,2]
[323112125,1713672638208,-473.25113505,0.00021912,2]
[323112126,1713672638218,-408.43488901,0.00021912,2]
[323112127,1713672638228,-468.36866358,0.00021912,2]
[323112128,1713672638238,-661.15486452,0.00021912,2]
[323112129,1713672638251,-156.36272035,0.00021912,2]
[323112130,1713672638263,-155.31988939,0.00021912,2]
[323112131,1713672638306,-199.96958124,0.00021912,2]
[323112132,1713672638316,-155.21937585,0.00021912,2]
[323112133,1713672638327,-244.38104938,0.00021912,2]
[323112134,1713672638339,-204.71160962,0.00021913,2]
[323112135,1713672638349,-155.07660359,0.00021913,2]
[323112136,1713672638359,-204.39115608,0.00021913,2]
[323112137,1713672638369,-16620.93117814,0.00021913,2]
[323112138,1713672638379,-19226.29060533,0.00021913,2]
[323112139,1713672638390,-58181.81088105,0.00021914,2]
[323112140,1713672638399,-154.86062644,0.00021915,2]
[323112141,1713672638410,-541.27452863,0.00021915,2]
[323112142,1713672638421,-258.12510795,0.00021915,2]
[323112143,1713672638430,-1035.04525491,0.00021915,2]
[323112144,1713672638440,-155.44915701,0.00021915,2]
[323112145,1713672638450,-155.23052291,0.00021915,2]
[323112146,1713672638460,-1429.65276606,0.00021915,2]
[323112147,1713672638470,-6666.76642804,0.00021916,2]
[323112148,1713672638480,-278.28592222,0.00021916,2]
[323112149,1713672638491,-10112.50231779,0.00021917,2]
[323112150,1713672638501,-496.65029045,0.00021917,2]
[323112151,1713672638512,-500.0,0.00021917,2]
[323112152,1713672638521,-500.0,0.00021917,2]
[323112153,1713672638532,-284.30419264,0.00021917,2]
[323112154,1713672638549,-516.62823142,0.00021917,2]
[323112155,1713672638560,-500.0,0.00021917,2]
[323112156,1713672638571,-500.0,0.00021917,2]
[323112157,1713672638582,-622.95,0.00021917,2]
[323112158,1713672638593,-500.0,0.00021917,2]
[323112159,1713672638604,-500.0,0.00021917,2]
[323112160,1713672638614,-356.7089209,0.00021917,2]
[323112161,1713672638625,-533.95198972,0.00021917,2]
[323112162,1713672638635,-506.57399351,0.00021917,2]
[323112163,1713672638646,-500.0,0.00021917,2]
[323112164,1713672638656,-500.0,0.00021917,2]
[323112165,1713672638666,-191.675075,0.00021917,2]
[323112166,1713672638676,-191.675075,0.00021917,2]
[323112167,1713672638686,-500.0,0.00021917,2]
[323112168,1713672638697,-191.675075,0.00021917,2]
[323112169,1713672638707,-191.675075,0.00021917,2]
[323112170,1713672638716,-191.675075,0.00021917,2]
[323112171,1713672638726,-191.675075,0.00021917,2]
[323112172,1713672638736,-191.675075,0.00021917,2]
[323112173,1713672638745,-191.675075,0.00021917,2]
[323112174,1713672638756,-376.14506913,0.00021917,2]
[323112175,1713672638766,-500.0,0.00021917,2]
[323112176,1713672638776,-423.22310033,0.00021917,2]
[323112177,1713672638787,-514.9079721,0.00021917,2]
[323112178,1713672638797,-500.0,0.00021917,2]
[323112179,1713672638808,-503.70157874,0.00021917,2]
[323112180,1713672638817,-500.0,0.00021917,2]
[323112181,1713672638826,-500.96894798,0.00021917,2]
[323112182,1713672638835,-500.0,0.00021917,2]
[323112183,1713672638844,-1593.83,0.00021917,2]
[323112184,1713672638853,-500.0,0.00021917,2]
[323112185,1713672638863,-513.69219065,0.00021917,2]
[323112186,1713672638873,-500.0,0.00021917,2]
[323112187,1713672638883,-500.0,0.00021917,2]
[323112188,1713672638983,-502.93859288,0.00021917,2]
[323112189,1713672638996,-504.37114288,0.00021917,2]
[323112190,1713672639006,-500.0,0.00021917,2]
[323112191,1713672639017,-500.0,0.00021917,2]
[323112192,1713672639027,-502.45541341,0.00021917,2]
[323112193,1713672639038,-500.0,0.00021917,2]
[323112194,1713672639050,-502.84949256,0.00021917,2]
[323112195,1713672639061,-504.88520862,0.00021917,2]
[323112196,1713672639070,-346.14346746,0.00021917,2]
[323112197,1713672639081,-504.82991669,0.00021917,2]
[323112198,1713672639091,-500.0,0.00021917,2]
[323112199,1713672639102,-510.64079701,0.00021917,2]
[323112200,1713672639112,-514.19186422,0.00021917,2]
[323112201,1713672639122,-500.0,0.00021917,2]
[323112202,1713672639133,-151.0,0.00021917,2]
[323112203,1713672639145,-151.0,0.00021917,2]
[323112204,1713672639156,-151.0,0.00021917,2]
[323112205,1713672639166,-151.0,0.00021917,2]
[323112206,1713672639176,-500.0,0.00021917,2]
[323112207,1713672639188,-843.26,0.00021917,2]
[323112208,1713672639198,-526.94280929,0.00021917,2]
[323112209,1713672639209,-511.73005325,0.00021917,2]
[323112210,1713672639219,-505.75842646,0.00021917,2]
[323112211,1713672639231,-512.22751472,0.00021917,2]
[323112212,1713672639241,-635.38589258,0.00021917,2]
[323112213,1713672639255,-500.0,0.00021917,2]
[323112214,1713672639265,-501.1185184,0.00021917,2]
[323112215,1713672639276,-500.0,0.00021917,2]
[323112216,1713672639286,-501.19224543,0.00021917,2]
[323112217,1713672639298,-503.83505764,0.00021917,2]
[323112218,1713672639307,-500.0,0.00021917,2]
[323112219,1713672639316,-500.0,0.00021917,2]
[323112220,1713672639327,-500.0,0.00021917,2]
[323112221,1713672639337,-500.0,0.00021917,2]
[323112222,1713672639347,-500.0,0.00021917,2]
[323112223,1713672639358,-599.77867144,0.00021917,2]
[323112224,1713672639368,-500.0,0.00021917,2]
[323112225,1713672639377,-10.42507798,0.00021917,2]
[323112263,1713672643271,-489.57492202,0.00021917,2]
[323112264,1713672643282,-500.0,0.00021917,2]
[323112265,1713672643293,-260.22848855,0.00021917,2]
[323112266,1713672643303,-500.0,0.00021917,2]
[323112267,1713672643312,-635.82205792,0.00021917,2]
[323112268,1713672643322,-502.51729193,0.00021917,2]
[323112269,1713672643332,-500.0,0.00021917,2]
[323112270,1713672643342,-502.83240292,0.00021917,2]
[323112271,1713672643351,-4.7593399,0.00021917,2]
[323112361,1713673511070,692.0,0.00024373,35]
[323112362,1713673511651,692.0,0.00024363,35]
[323112363,1713673512236,692.0,0.00024353,35]
[323112666,1713673840725,-154.84515485,0.00021565,2]
[323112667,1713673840734,-521.29976744,0.00021566,2]
[323112668,1713673840743,-2774.01551629,0.00021566,2]
[323112669,1713673840752,-1337.63122269,0.00021567,2]
[323112670,1713673840766,-337.54981238,0.00021567,2]
[323112671,1713673840775,-623.09491363,0.00021568,2]
[323112672,1713673840784,-300.0,0.00021576,2]
[323112673,1713673840793,-300.0,0.00021576,2]
[323112674,1713673840803,-1392.16825388,0.00021577,2]
[323112689,1713673843357,-179.82215512,0.00021581,2]
[323112690,1713673843367,-1868.68304466,0.00021814,2]
[323112693,1713673844179,345.0,0.00024373,35]
[323112694,1713673844904,345.0,0.00024363,35]
[323112695,1713673845510,345.0,0.00024353,35]
[323112709,1713673846406,-284.61,0.00021814,2]
[323112710,1713673867006,236.74140401,0.00019724,2]
[323112711,1713673894452,385.87436612,0.00019724,2]
[323112712,1713673900309,36809.72805983,0.00019724,2]
[323112713,1713673914342,36809.72805983,0.00019724,2]
[323112714,1713673916450,385.87436612,0.00019724,2]
[323112715,1713673932308,36809.72805983,0.00019724,2]
[323112716,1713673936471,261.38586184,0.00019724,2]
[323112717,1713673950317,19177.86831917,0.00019724,2]
[323112718,1713673968317,19177.86831917,0.00019724,2]
[323112719,1713673992323,19177.86831917,0.00019724,2]
[323112720,1713674010324,19177.86831917,0.00019724,2]
[323112721,1713674032323,19177.86831917,0.00019724,2]
[323112722,1713674050322,19177.86831917,0.00019724,2]
[323112723,1713674068329,19177.86831917,0.00019724,2]
[323112724,1713674084333,19177.86831917,0.00019724,2]
[323112725,1713674102339,19177.86831917,0.00019724,2]
[323112726,1713674122441,19177.86831917,0.00019724,2]
[323112727,1713674140339,19177.86831917,0.00019724,2]
[323112728,1713674162384,7393.32258906,0.00019724,2]
[323112729,1713674227144,533.7464206,0.00020881,2]
[323112730,1713674318756,10112.50231779,0.00020881,2]
[323112731,1713674332870,9739.19596555,0.00020881,2]
[323112732,1713674399529,242.0,0.000241,35]
[323112733,1713674400115,242.0,0.0002409,35]
[323112734,1713674400727,242.0,0.0002408,35]
[323112735,1713674584493,150.5,0.000241,35]
[323112736,1713674585278,271.63,0.0002409,35]
[323112737,1713674833907,169.0,0.00024373,35]
[323112738,1713674834603,169.0,0.00024363,35]
[323112739,1713674835252,169.0,0.00024353,35]
[323112748,1713675032474,-179.82215511,0.00021709,2]
[323112749,1713675032484,-2774.01551629,0.00021771,2]
[323112750,1713675032493,-1489.75322658,0.00021772,2]
[323112751,1713675032502,-1201.72825929,0.00021773,2]
[323112752,1713675032511,-615.39135286,0.00021814,2]
[323112753,1713675032523,-246.77708241,0.00021815,2]
[323112754,1713675032532,-527.93327108,0.00021815,2]
[323112755,1713675032541,-246.77708238,0.00021816,2]
[323112756,1713675032550,-246.77708238,0.00021816,2]
[323112757,1713675032558,-246.77708238,0.00021817,2]
[323112758,1713675032567,-246.77708238,0.00021817,2]
[323112759,1713675032576,-300.0,0.00021911,2]
[323112760,1713675032585,-300.0,0.00021911,2]
[323112761,1713675032594,-8934.76792969,0.00021912,2]
[323112762,1713675032603,-519.6950038,0.00021913,2]
[323112763,1713675032612,-11216.06582281,0.00021914,2]
[323112764,1713675032623,-549.90202406,0.00021915,2]
[323112765,1713675032632,-473.7390703,0.00021915,2]
[323112766,1713675032640,-1429.65276606,0.00021915,2]
[323112767,1713675032650,-258.12510795,0.00021915,2]
[323112768,1713675032659,-278.28592222,0.00021915,2]
[323112769,1713675032668,-155.23052291,0.00021915,2]
[323112770,1713675032677,-155.44915701,0.00021915,2]
[323112771,1713675032686,-1035.04525491,0.00021915,2]
[323112772,1713675032695,-541.27452863,0.00021915,2]
[323112773,1713675032705,-667.99263696,0.00021915,2]
[323112774,1713675032714,-2132.49179691,0.00021915,2]
[323112775,1713675032723,-39482.92472741,0.00021915,2]
[323112776,1713675032733,-1687.09931381,0.00021915,2]
[323112777,1713675032853,-155.10745506,0.00021915,2]
[323112778,1713675032862,-656.2803781,0.00021915,2]
[323112779,1713675032871,-21968.04546351,0.00021915,2]
[323113037,1713675040637,-464.76322749,0.00021914,2]
[323113039,1713675040646,-185.49422845,0.00021914,2]
[323113041,1713675040656,-455.66134652,0.00021914,2]
[323113043,1713675040666,-413.55405589,0.00021914,2]
[323113045,1713675040675,-11345.20650699,0.00021915,2]
[323113493,1713675046568,-335.11788326,0.00021915,2]
[323113496,1713675046590,-1566.76714432,0.00021915,2]
[323113519,1713675048828,179.72830031,0.00017532,2]
[323113521,1713675110982,5927.65329031,0.00017532,2]
[323113529,1713675184952,150.5,0.00024647,35]
[323113530,1713675185509,150.5,0.00024637,35]
[323113532,1713675187035,150.5,0.00024627,35]
[323113548,1713675364301,181.18659033,0.00019815,2]
[323113549,1713675528366,173.02722428,0.00019815,2]
[323113550,1713675530048,19167.30700604,0.00019815,2]
[323113551,1713675541465,150.5,0.00024647,35]
[323113552,1713675542211,150.5,0.00024637,35]
[323113553,1713675542928,150.5,0.00024627,35]
[323113554,1713675550283,770.21037316,0.00019724,2]
[323113555,1713675576053,2054.05255548,0.00019815,2]
[323113556,1713675624910,236.951968,0.00020642,2]
[323113557,1713675668425,219.0507196,0.00019815,2]
[323113558,1713675737650,7364.36573569,0.00019815,2]
[323113560,1713675904771,284.35,0.00024921,35]
[323113561,1713675969809,211.54025266,0.000189,2]
[323113562,1713675994985,535.28358735,0.000189,2]
[323113563,1713676034808,386.86187828,0.000189,2]
[323113564,1713676054757,385.58155713,0.000189,2]
[323113565,1713676070757,194.74099993,0.000189,2]
[323113566,1713676078773,283.812764,0.00020799,2]
[323113567,1713676099927,154.84515485,0.00020799,2]
[323113570,1713676115931,154.84515485,0.00020799,2]
[323113571,1713676140028,164.72462304,0.00020799,2]
[323113621,1713676232723,-300.0,0.00021391,2]
[323113623,1713676232734,-211.98635091,0.00021392,2]
[323113625,1713676232743,-1813.80429335,0.00021399,2]
[323113926,1713676240893,-960.21122294,0.00021399,2]
[323113928,1713676240903,-939.53943548,0.000214,2]
[323113931,1713676240916,-70.85772752,0.000214,2]
[323113932,1713676240925,-256.02227248,0.00021716,2]
[323113935,1713676240937,-371.24,0.00021716,2]
[323113999,1713676245511,168.69885,0.00020642,2]
[323114237,1713676271135,191.02683511,0.00019299,2]
[323114238,1713676299838,24900.0,0.00020887,2]
[323114240,1713676534552,150.83408251,0.00023554,30]
[323114241,1713676537901,1079.8488423,0.00020813,2]
[323114242,1713676542503,283.812764,0.00020813,2]
[323114243,1713676572485,150.0,0.00019299,2]
[323114244,1713676873691,150.0,0.00019299,2]
[323114250,1713677309289,168.026845,0.00020203,2]
[323114266,1713677431848,-300.0,0.00021373,2]
[323114267,1713677431857,-189.12046412,0.00021374,2]
[323114268,1713677431867,-623.53234901,0.00021375,2]
[323114269,1713677431876,-211.98635091,0.00021375,2]
[323114270,1713677431885,-623.53234901,0.00021375,2]
[323114271,1713677431896,-161.96145842,0.00021376,2]
[323114272,1713677431907,-204.08167779,0.00021377,2]
[323114273,1713677431917,-2656.22169154,0.00021378,2]
[323114274,1713677431929,-117.79382475,0.00021378,2]
[323114275,1713677431940,-149.99999702,0.000214,3]
[323114276,1713677431952,-300.0,0.00021496,2]
[323114277,1713677431963,-300.0,0.00021496,2]
[323114278,1713677431974,-154.86062544,0.00021594,2]
[323114279,1713677431985,-613.50648313,0.00021594,2]
[323114280,1713677431995,-346.21047203,0.00021594,2]
[323114281,1713677432005,-1078.98670149,0.00021594,2]
[323114282,1713677432016,-361.17012444,0.00021595,2]
[323114283,1713677432026,-292.21448362,0.00021595,2]
[323114284,1713677432035,-228.61369705,0.00021595,2]
[323114285,1713677432046,-9211.92301545,0.00021596,2]
[323114286,1713677432069,-70788.07698455,0.00021596,2]
[323114287,1713677432079,-52978.35465578,0.00021597,2]
[323114288,1713677432089,-15041.1375369,0.00021599,2]
[323114305,1713677437852,-957.21694951,0.00021497,2]
[323114316,1713677437945,-540.8924734,0.00021497,2]
[323114318,1713677437954,-1498.10942291,0.00021498,2]
[323114319,1713677437963,-1498.10942291,0.00021498,2]
[323114321,1713677437973,-14682.91415749,0.00021599,2]
[323114323,1713677437984,-498.938693,0.00021599,2]
[323114325,1713677437993,-498.938693,0.00021599,2]
[323114327,1713677438003,-211.750803,0.00021599,2]
[323114328,1713677438012,-211.750803,0.00021599,2]
[323114329,1713677438022,-191.675075,0.00021599,2]
[323114330,1713677438031,-191.675075,0.00021599,2]
[323114331,1713677438040,-780.270555,0.00021599,2]
[323114332,1713677438049,-780.270555,0.00021599,2]
[323114333,1713677438058,-306.701007,0.00021599,2]
[323114334,1713677438067,-306.701007,0.00021599,2]
[323114335,1713677438076,-2768.016062,0.00021599,2]
[323114336,1713677438086,-151.0,0.00021599,2]
[323114337,1713677438095,-151.0,0.00021599,2]
[323114338,1713677438104,-2768.016062,0.00021599,2]
[323114339,1713677438114,-155.31988939,0.00021601,2]
[323114340,1713677438125,-1038.11014122,0.00021601,2]
[323114341,1713677438136,-159.68999245,0.00021601,2]
[323114342,1713677438146,-1093.39045188,0.00021601,2]
[323114343,1713677438155,-155.21937585,0.00021601,2]
[323114344,1713677438165,-468.36866358,0.00021601,2]
[323114345,1713677438174,-155.07660359,0.00021601,2]
[323114346,1713677438183,-281.94673516,0.00021601,2]
[323114347,1713677438192,-525.5383317,0.00021601,2]
[323114348,1713677438201,-155.45888017,0.00021601,2]
[323114349,1713677438211,-552.42069654,0.00021601,2]
[323114350,1713677438220,-158.25102288,0.00021601,2]
[323114351,1713677438229,-155.08216337,0.00021601,2]
[323114352,1713677438240,-661.15486452,0.00021601,2]
[323114353,1713677438249,-199.96958124,0.00021601,2]
[323114354,1713677438258,-218.60544592,0.00021601,2]
[323114355,1713677438267,-244.38104938,0.00021601,2]
[323114356,1713677438277,-234.1221445,0.00021601,2]
[323114357,1713677438288,-155.47377049,0.00021601,2]
[323114358,1713677438297,-151.0,0.00021601,2]
[323114359,1713677438306,-151.0,0.00021601,2]
[323114360,1713677438315,-151.0,0.00021601,2]
[323114361,1713677438324,-151.0,0.00021601,2]
[323114362,1713677438333,-498.938693,0.00021601,2]
[323114363,1713677438342,-498.938693,0.00021601,2]
[323114364,1713677438352,-211.750803,0.00021601,2]
[323114365,1713677438362,-211.750803,0.00021601,2]
[323114366,1713677438371,-191.675075,0.00021601,2]
[323114367,1713677438380,-191.675075,0.00021601,2]
[323114368,1713677438390,-191.675075,0.00021601,2]
[323114369,1713677438399,-191.675075,0.00021601,2]
[323114370,1713677438408,-780.270555,0.00021601,2]
[323114371,1713677438417,-780.270555,0.00021601,2]
[323114372,1713677438426,-780.270555,0.00021601,2]
[323114373,1713677438436,-780.270555,0.00021601,2]
[323114374,1713677438445,-306.701007,0.00021601,2]
[323114375,1713677438455,-306.701007,0.00021601,2]
[323114376,1713677438465,-306.701007,0.00021601,2]
[323114377,1713677438474,-306.701007,0.00021601,2]
[323114378,1713677438484,-2768.016062,0.00021601,2]
[323114379,1713677438493,-2768.016062,0.00021601,2]
[323114380,1713677438503,-151.0,0.00021601,2]
[323114381,1713677438512,-151.0,0.00021601,2]
[323114382,1713677438522,-151.0,0.00021601,2]
[323114383,1713677438531,-151.0,0.00021601,2]
[323114384,1713677438540,-2768.016062,0.00021601,2]
[323114385,1713677438549,-2768.016062,0.00021601,2]
[323114386,1713677438559,-204.39115608,0.00021602,2]
[323114387,1713677438568,-473.25113505,0.00021602,2]
[323114388,1713677438577,-408.43488901,0.00021602,2]
[323114389,1713677438586,-156.36272035,0.00021602,2]
[323114390,1713677438595,-167.47944015,0.00021602,2]
[323114391,1713677438605,-329.39846217,0.00021602,2]
[323114392,1713677438614,-675.19997893,0.00021602,2]
[323114393,1713677438623,-155.58264086,0.00021602,2]
[323114394,1713677438632,-151.0,0.00021602,2]
[323114395,1713677438642,-153.283008,0.00021602,2]
[323114396,1713677438651,-161.110096,0.00021602,2]
[323114397,1713677438662,-498.938693,0.00021602,2]
[323114398,1713677438671,-498.938693,0.00021602,2]
[323114399,1713677438681,-211.750803,0.00021602,2]
[323114400,1713677438689,-211.750803,0.00021602,2]
[323114401,1713677438698,-306.701007,0.00021602,2]
[323114402,1713677438708,-306.701007,0.00021602,2]
[323114403,1713677438717,-2768.016062,0.00021602,2]
[323114404,1713677438729,-151.0,0.00021602,2]
[323114405,1713677438740,-244.867374,0.00021602,2]
[323114406,1713677438750,-2768.016062,0.00021602,2]
[323114407,1713677438759,-58181.81088105,0.00021603,2]
[323114408,1713677438769,-485.120204,0.00021603,2]
[323114409,1713677438778,-485.120204,0.00021603,2]
[323114410,1713677438787,-151.0,0.00021603,2]
[323114411,1713677438797,-151.0,0.00021603,2]
[323114412,1713677438807,-151.0,0.00021603,2]
[323114413,1713677438816,-151.0,0.00021603,2]
[323114414,1713677438825,-151.0,0.00021603,2]
[323114415,1713677438834,-151.0,0.00021603,2]
[323114416,1713677438844,-151.0,0.00021603,2]
[323114417,1713677438853,-498.938693,0.00021603,2]
[323114418,1713677438862,-498.938693,0.00021603,2]
[323114419,1713677438872,-498.938693,0.00021603,2]
[323114420,1713677438881,-498.938693,0.00021603,2]
[323114421,1713677438891,-211.750803,0.00021603,2]
[323114422,1713677438900,-211.750803,0.00021603,2]
[323114423,1713677438909,-211.750803,0.00021603,2]
[323114424,1713677438920,-211.750803,0.00021603,2]
[323114425,1713677438930,-191.675075,0.00021603,2]
[323114426,1713677438939,-191.675075,0.00021603,2]
[323114427,1713677438949,-191.675075,0.00021603,2]
[323114428,1713677438959,-191.675075,0.00021603,2]
[323114429,1713677438969,-780.270555,0.00021603,2]
[323114430,1713677438977,-780.270555,0.00021603,2]
[323114431,1713677438991,-780.270555,0.00021603,2]
[323114432,1713677439001,-780.270555,0.00021603,2]
[323114433,1713677439011,-306.701007,0.00021603,2]
[323114434,1713677439021,-306.701007,0.00021603,2]
[323114435,1713677439031,-306.701007,0.00021603,2]
[323114436,1713677439040,-306.701007,0.00021603,2]
[323114437,1713677439051,-151.0,0.00021603,2]
[323114438,1713677439062,-2768.016062,0.00021603,2]
[323114439,1713677439071,-2768.016062,0.00021603,2]
[323114440,1713677439080,-151.0,0.00021603,2]
[323114441,1713677439090,-2768.016062,0.00021603,2]
[323114442,1713677439100,-2768.016062,0.00021603,2]
[323114443,1713677439109,-2768.016062,0.00021603,2]
[323114444,1713677439118,-2768.016062,0.00021603,2]
[323114445,1713677439127,-18402.33226965,0.00021605,2]
[323114446,1713677439136,-485.120204,0.00021605,2]
[323114447,1713677439146,-485.120204,0.00021605,2]
[323114448,1713677439155,-151.0,0.00021605,2]
[323114449,1713677439164,-151.0,0.00021605,2]
[323114450,1713677439173,-204.536091,0.00021605,2]
[323114451,1713677439182,-151.0,0.00021605,2]
[323114452,1713677439191,-151.0,0.00021605,2]
[323114453,1713677439201,-151.0,0.00021605,2]
[323114454,1713677439210,-151.0,0.00021605,2]
[323114455,1713677439220,-151.0,0.00021605,2]
[323114456,1713677439230,-151.0,0.00021605,2]
[323114457,1713677439241,-151.0,0.00021605,2]
[323114458,1713677439250,-151.0,0.00021605,2]
[323114459,1713677439259,-173.76218,0.00021605,2]
[323114460,1713677439269,-498.938693,0.00021605,2]
[323114461,1713677439278,-498.938693,0.00021605,2]
[323114462,1713677439287,-498.938693,0.00021605,2]
[323114463,1713677439378,-498.938693,0.00021605,2]
[323114464,1713677439388,-498.938693,0.00021605,2]
[323114465,1713677439398,-498.938693,0.00021605,2]
[323114466,1713677439408,-211.750803,0.00021605,2]
[323114467,1713677439416,-211.750803,0.00021605,2]
[323114468,1713677439426,-211.750803,0.00021605,2]
[323114469,1713677439435,-211.750803,0.00021605,2]
[323114470,1713677439444,-211.750803,0.00021605,2]
[323114471,1713677439453,-158.17931657,0.00021605,2]
[323114472,1713677439466,-53.57148643,0.00021605,2]
[323114473,1713677439475,-191.675075,0.00021605,2]
[323114474,1713677439485,-191.675075,0.00021605,2]
[323114475,1713677439493,-191.675075,0.00021605,2]
[323114476,1713677439502,-191.675075,0.00021605,2]
[323114477,1713677439512,-191.675075,0.00021605,2]
[323114478,1713677439521,-191.675075,0.00021605,2]
[323114479,1713677439530,-191.675075,0.00021605,2]
[323114480,1713677439539,-191.675075,0.00021605,2]
[323114481,1713677439549,-780.270555,0.00021605,2]
[323114482,1713677439558,-780.270555,0.00021605,2]
[323114483,1713677439567,-780.270555,0.00021605,2]
[323114484,1713677439576,-780.270555,0.00021605,2]
[323114485,1713677439586,-780.270555,0.00021605,2]
[323114486,1713677439595,-780.270555,0.00021605,2]
[323114487,1713677439604,-780.270555,0.00021605,2]
[323114489,1713677439614,-780.270555,0.00021605,2]
[323114490,1713677439623,-306.701007,0.00021605,2]
[323114491,1713677439632,-306.701007,0.00021605,2]
[323114492,1713677439642,-306.701007,0.00021605,2]
[323114493,1713677439653,-306.701007,0.00021605,2]
[323114494,1713677439662,-306.701007,0.00021605,2]
[323114495,1713677439671,-306.701007,0.00021605,2]
[323114497,1713677439680,-306.701007,0.00021605,2]
[323114498,1713677439689,-306.7010079,0.00021605,2]
[323114499,1713677439698,-2768.016062,0.00021605,2]
[323114500,1713677439707,-1811.2649334,0.00021605,2]
[323114514,1713677442969,-1498.10942291,0.00021499,2]
[323114515,1713677442979,-1498.10942291,0.00021499,2]
[323114516,1713677442989,-151.0,0.00021599,2]
[323114517,1713677442998,-151.0,0.00021601,2]
[323114518,1713677443007,-202.593322,0.00021601,2]
[323114519,1713677443016,-956.7511286,0.00021605,2]
[323114520,1713677443025,-2768.016062,0.00021605,2]
[323114521,1713677443035,-2768.016062,0.00021605,2]
[323114522,1713677443044,-2768.016062,0.00021605,2]
[323114523,1713677443053,-2768.016056,0.00021605,2]
[323114524,1713677443062,-485.120204,0.00021815,2]
[323114525,1713677443071,-485.120204,0.00021815,2]
[323114526,1713677443080,-151.0,0.00021815,2]
[323114527,1713677443089,-151.0,0.00021815,2]
[323114528,1713677443098,-151.0,0.00021815,2]
[323114529,1713677443107,-151.0,0.00021815,2]
[323114530,1713677443116,-498.938693,0.00021815,2]
[323114531,1713677443126,-498.938693,0.00021815,2]
[323114532,1713677443135,-498.938693,0.00021815,2]
[323114533,1713677443145,-498.938687,0.00021815,2]
[323114534,1713677443155,-211.750803,0.00021815,2]
[323114535,1713677443165,-211.750803,0.00021815,2]
[323114536,1713677443174,-211.750803,0.00021815,2]
[323114537,1713677443183,-211.750811,0.00021815,2]
[323114538,1713677443193,-191.675075,0.00021815,2]
[323114539,1713677443202,-191.675067,0.00021815,2]
[323114540,1713677443211,-780.270555,0.00021815,2]
[323114541,1713677443220,-780.270551,0.00021815,2]
[323114542,1713677443229,-485.120204,0.00021816,2]
[323114543,1713677443239,-485.120204,0.00021816,2]
[323114544,1713677443248,-151.0,0.00021816,2]
[323114545,1713677443258,-151.0,0.00021816,2]
[323114546,1713677443268,-9158.00976563,0.00021817,2]
[323114547,1713677443277,-485.120204,0.00021817,2]
[323114548,1713677443372,-485.120204,0.00021817,2]
[323114549,1713677443382,-485.120204,0.00021817,2]
[323114550,1713677443391,-485.120204,0.00021817,2]
[323114551,1713677443401,-151.0,0.00021817,2]
[323114552,1713677443410,-151.0,0.00021817,2]
[323114553,1713677443420,-151.0,0.00021817,2]